fUST/lending_fUST_20250914
["ID","MTS","AMOUNT","RATE_DAILY","PERIOD"]
[385454921,1757862640465,-480.0,0.00021917,2]
[385454922,1757862640477,-480.0,0.00021917,2]
[385454923,1757862640487,-739.68,0.00021917,2]
[385454924,1757862640497,-480.0,0.00021917,2]
[385454925,1757862640507,-480.0,0.00021917,2]
[385454926,1757862640518,-480.0,0.00021917,2]
[385454927,1757862640530,-548.21,0.00021917,2]
[385454928,1757862640540,-480.0,0.00021917,2]
[385454929,1757862640549,-480.0,0.00021917,2]
[385454930,1757862640559,-1131.57,0.00021917,2]
[385454931,1757862640569,-996.38,0.00021917,2]
[385454932,1757862640579,-480.0,0.00021917,2]
[385454933,1757862640589,-480.0,0.00021917,2]
[385454934,1757862640599,-480.0,0.00021917,2]
[385454935,1757862640610,-480.0,0.00021917,2]
[385454936,1757862640619,-826.67,0.00021917,2]
[385454937,1757862640628,-480.0,0.00021917,2]
[385454938,1757862640639,-480.0,0.00021917,2]
[385454939,1757862640649,-480.0,0.00021917,2]
[385454940,1757862640658,-480.0,0.00021917,2]
[385454941,1757862640667,-568.76769437,0.00021917,2]
[385454942,1757862640677,-484.59805901,0.00021917,2]
[385454943,1757862640686,-316.9109643,0.00021917,2]
[385454944,1757862640696,-548.97722786,0.00021917,2]
[385454945,1757862640707,-480.0,0.00021917,2]
[385454946,1757862640717,-480.0,0.00021917,2]
[385454947,1757862640726,-480.0,0.00021917,2]
[385454948,1757862640736,-480.0,0.00021917,2]
[385454949,1757862640746,-480.0,0.00021917,2]
[385454950,1757862640755,-480.0,0.00021917,2]
[385454951,1757862640764,-483.99890127,0.00021917,2]
[385454952,1757862640773,-480.0,0.00021917,2]
[385454953,1757862640782,-480.0,0.00021917,2]
[385454954,1757862640792,-480.0,0.00021917,2]
[385454955,1757862640800,-500.0,0.00021917,2]
[385454956,1757862640810,-500.0,0.00021917,2]
[385454957,1757862640820,-480.0,0.00021917,2]
[385454958,1757862640830,-486.97521712,0.00021917,2]
[385454959,1757862640839,-480.0,0.00021917,2]
[385454960,1757862640848,-480.0,0.00021917,2]
[385454961,1757862640858,-920.34,0.00021917,2]
[385454962,1757862640867,-416.00167969,0.00021917,2]
[385454963,1757862640886,-63.99832031,0.00021917,2]
[385454964,1757862640897,-482.02953333,0.00021917,2]
[385454965,1757862640908,-480.0,0.00021917,2]
[385454966,1757862640918,-481.41424836,0.00021917,2]
[385454967,1757862640928,-480.0,0.00021917,2]
[385454968,1757862640938,-892.28,0.00021917,2]
[385454969,1757862640947,-480.0,0.00021917,2]
[385454970,1757862640956,-480.0,0.00021917,2]
[385454971,1757862640966,-502.71165054,0.00021917,2]
[385454972,1757862640975,-480.0,0.00021917,2]
[385454973,1757862640984,-480.0,0.00021917,2]
[385454974,1757862640993,-480.0,0.00021917,2]
[385454975,1757862641003,-480.0,0.00021917,2]
[385454976,1757862641012,-480.0,0.00021917,2]
[385454977,1757862641021,-480.0,0.00021917,2]
[385454978,1757862641031,-480.0,0.00021917,2]
[385454979,1757862641040,-480.0,0.00021917,2]
[385454980,1757862641049,-480.0,0.00021917,2]
[385454981,1757862641059,-480.0,0.00021917,2]
[385454982,1757862641069,-556.06,0.00021917,2]
[385454983,1757862641078,-482.63726045,0.00021917,2]
[385454984,1757862641088,-480.0,0.00021917,2]
[385454985,1757862641097,-480.0,0.00021917,2]
[385454986,1757862641107,-480.0,0.00021917,2]
[385454987,1757862641116,-480.0,0.00021917,2]
[385454988,1757862641126,-480.0,0.00021917,2]
[385454989,1757862641136,-1834.94,0.00021917,2]
[385454990,1757862641145,-480.0,0.00021917,2]
[385454991,1757862641154,-480.0,0.00021917,2]
[385454992,1757862641164,-480.0,0.00021917,2]
[385454993,1757862641173,-480.0,0.00021917,2]
[385454994,1757862641182,-293.44889361,0.00021917,2]
[385454995,1757862641192,-480.0,0.00021917,2]
[385454996,1757862641201,-480.0,0.00021917,2]
[385454997,1757862641211,-480.0,0.00021917,2]
[385454998,1757862641221,-480.0,0.00021917,2]
[385454999,1757862641230,-480.0,0.00021917,2]
[385455000,1757862641239,-480.0,0.00021917,2]
[385455001,1757862641250,-480.0,0.00021917,2]
[385455002,1757862641259,-480.0,0.00021917,2]
[385455003,1757862641269,-486.91967662,0.00021917,2]
[385455004,1757862641278,-480.0,0.00021917,2]
[385455005,1757862641288,-480.0,0.00021917,2]
[385455006,1757862641297,-480.0,0.00021917,2]
[385455007,1757862641307,-480.0,0.00021917,2]
[385455008,1757862641317,-480.0,0.00021917,2]
[385455009,1757862641326,-480.0,0.00021917,2]
[385455010,1757862641338,-480.0,0.00021917,2]
[385455011,1757862641349,-480.0,0.00021917,2]
[385455012,1757862641359,-1220.98,0.00021917,2]
[385455013,1757862641369,-480.0,0.00021917,2]
[385455014,1757862641378,-944.06,0.00021917,2]
[385455015,1757862641387,-480.0,0.00021917,2]
[385455016,1757862641396,-480.0,0.00021917,2]
[385455017,1757862641406,-772.26,0.00021917,2]
[385455018,1757862641415,-480.0,0.00021917,2]
[385455019,1757862641426,-480.0,0.00021917,2]
[385455020,1757862641437,-480.0,0.00021917,2]
[385455021,1757862641447,-497.37,0.00021917,2]
[385455022,1757862641457,-483.03585346,0.00021917,2]
[385455023,1757862641469,-480.0,0.00021917,2]
[385455024,1757862641478,-480.0,0.00021917,2]
[385455025,1757862641487,-480.0,0.00021917,2]
[385455026,1757862641611,-480.0,0.00021917,2]
[385455027,1757862641636,-621.678102,0.00021917,2]
[385455028,1757862641646,-480.0,0.00021917,2]
[385455029,1757862641657,-481.48922692,0.00021917,2]
[385455030,1757862641666,-480.0,0.00021917,2]
[385455031,1757862641675,-480.0,0.00021917,2]
[385455032,1757862641685,-480.0,0.00021917,2]
[385455033,1757862641694,-480.0,0.00021917,2]
[385455034,1757862641703,-480.0,0.00021917,2]
[385455035,1757862641714,-480.0,0.00021917,2]
[385455036,1757862641724,-480.0,0.00021917,2]
[385455037,1757862641733,-480.0,0.00021917,2]
[385455038,1757862641742,-500.0,0.00021917,2]
[385455039,1757862641752,-460.0,0.00021917,2]
[385455040,1757862641761,-480.0,0.00021917,2]
[385455041,1757862641771,-1190.93,0.00021917,2]
[385455042,1757862641781,-480.0,0.00021917,2]
[385455043,1757862641790,-346.08558636,0.00021917,2]
[385455044,1757862641800,-628.78393172,0.00021917,2]
[385455045,1757862641809,-417.70756166,0.00021917,2]
[385455046,1757862641826,-62.29243834,0.00021917,2]
[385455047,1757862641836,-480.0,0.00021917,2]
[385455048,1757862641845,-480.0,0.00021917,2]
[385455049,1757862641855,-103.58993105,0.00021917,2]
[385455050,1757862641884,-726.07006895,0.00021917,2]
[385455051,1757862641894,-492.20820192,0.00021917,2]
[385455052,1757862641903,-480.0,0.00021917,2]
[385455053,1757862641913,-235.66425328,0.00021917,2]
[385455054,1757862641923,-590.75,0.00021917,2]
[385455055,1757862641932,-768.4,0.00021917,2]
[385455056,1757862641941,-480.0,0.00021917,2]
[385455057,1757862641950,-481.8718385,0.00021917,2]
[385455058,1757862641960,-489.14633156,0.00021917,2]
[385455059,1757862641969,-480.0,0.00021917,2]
[385455060,1757862641978,-216.67611592,0.00021917,2]
[385455061,1757862641988,-5888.53,0.00021917,2]
[385455062,1757862641997,-497.98681952,0.00021917,2]
[385455063,1757862642006,-1306.18,0.00021917,2]
[385455064,1757862642015,-3987.68,0.00021917,2]
[385455065,1757862642025,-480.0,0.00021917,2]
[385455066,1757862642034,-480.0,0.00021917,2]
[385455067,1757862642043,-480.0,0.00021917,2]
[385455068,1757862642052,-480.0,0.00021917,2]
[385455069,1757862642062,-489.20108789,0.00021917,2]
[385455070,1757862642071,-480.0,0.00021917,2]
[385455071,1757862642080,-2852.8,0.00021917,2]
[385455072,1757862642089,-480.0,0.00021917,2]
[385455073,1757862642098,-480.0,0.00021917,2]
[385455074,1757862642107,-480.0,0.00021917,2]
[385455075,1757862642117,-405.09745714,0.00021917,2]
[385455076,1757862642126,-480.0,0.00021917,2]
[385455077,1757862642136,-618.36,0.00021917,2]
[385455078,1757862642145,-480.0,0.00021917,2]
[385455079,1757862642154,-1522.69,0.00021917,2]
[385455080,1757862642164,-1522.89,0.00021917,2]
[385455081,1757862642174,-485.87198525,0.00021917,2]
[385455082,1757862642183,-486.45043996,0.00021917,2]
[385455083,1757862642192,-480.0,0.00021917,2]
[385455084,1757862642201,-480.0,0.00021917,2]
[385455085,1757862642212,-480.0,0.00021917,2]
[385455086,1757862642222,-490.23,0.00021917,2]
[385455087,1757862642232,-956.41,0.00021917,2]
[385455088,1757862642242,-480.0,0.00021917,2]
[385455089,1757862642255,-480.0,0.00021917,2]
[385455090,1757862642264,-480.0,0.00021917,2]
[385455091,1757862642273,-801.9,0.00021917,2]
[385455092,1757862642282,-480.0,0.00021917,2]
[385455093,1757862642294,-480.0,0.00021917,2]
[385455094,1757862642303,-480.0,0.00021917,2]
[385455095,1757862642313,-754.18,0.00021917,2]
[385455096,1757862642326,-480.0,0.00021917,2]
[385455097,1757862642339,-480.0,0.00021917,2]
[385455098,1757862642349,-480.0,0.00021917,2]
[385455099,1757862642358,-480.0,0.00021917,2]
[385455100,1757862642368,-480.0,0.00021917,2]
[385455101,1757862642378,-651.39,0.00021917,2]
[385455102,1757862642388,-480.0,0.00021917,2]
[385455103,1757862642397,-480.0,0.00021917,2]
[385455104,1757862642407,-480.0,0.00021917,2]
[385455105,1757862642416,-1236.04,0.00021917,2]
[385455106,1757862642428,-480.0,0.00021917,2]
[385455108,1757862642437,-1503.14,0.00021917,2]
[385455109,1757862642446,-480.0,0.00021917,2]
[385455110,1757862642455,-480.0,0.00021917,2]
[385455111,1757862642465,-480.0,0.00021917,2]
[385455112,1757862642475,-480.0,0.00021917,2]
[385455113,1757862642484,-480.0,0.00021917,2]
[385455114,1757862642493,-674.98,0.00021917,2]
[385455115,1757862642503,-480.0,0.00021917,2]
[385455116,1757862642512,-482.19521894,0.00021917,2]
[385455118,1757862642522,-2138.06,0.00021917,2]
[385455120,1757862642531,-2697.39,0.00021917,2]
[385455122,1757862642541,-480.0,0.00021917,2]
[385455124,1757862642550,-480.0,0.00021917,2]
[385455126,1757862642559,-1250.4,0.00021917,2]
[385455128,1757862642570,-480.0,0.00021917,2]
[385455130,1757862642579,-480.0,0.00021917,2]
[385455132,1757862642588,-480.0,0.00021917,2]
[385455134,1757862642598,-480.0,0.00021917,2]
[385455136,1757862642607,-480.0,0.00021917,2]
[385455138,1757862642621,-176.23026373,0.00021917,2]
[385455140,1757862642631,-485.12202504,0.00021917,2]
[385455142,1757862642641,-480.0,0.00021917,2]
[385455144,1757862642650,-480.0,0.00021917,2]
[385455145,1757862642659,-3896.18,0.00021917,2]
[385455148,1757862642669,-480.0,0.00021917,2]
[385455149,1757862642678,-648.97,0.00021917,2]
[385455151,1757862642687,-13459.25,0.00021917,2]
[385455153,1757862642697,-480.0,0.00021917,2]
[385455155,1757862642707,-480.0,0.00021917,2]
[385455157,1757862642716,-480.0,0.00021917,2]
[385455158,1757862642726,-500.11957811,0.00021917,2]
[385455159,1757862642735,-3016.26,0.00021917,2]
[385455160,1757862642744,-843.14,0.00021917,2]
[385455162,1757862642754,-480.0,0.00021917,2]
[385455163,1757862642764,-1166.47,0.00021917,2]
[385455164,1757862642773,-488.80296565,0.00021917,2]
[385455165,1757862642782,-480.0,0.00021917,2]
[385455166,1757862642792,-480.0,0.00021917,2]
[385455167,1757862642803,-603.94,0.00021917,2]
[385455168,1757862642812,-910.83,0.00021917,2]
[385455169,1757862642822,-480.0,0.00021917,2]
[385455170,1757862642831,-480.0,0.00021917,2]
[385455171,1757862642841,-480.0,0.00021917,2]
[385455172,1757862642851,-567.76,0.00021917,2]
[385455173,1757862642862,-480.0,0.00021917,2]
[385455174,1757862642872,-480.0,0.00021917,2]
[385455175,1757862642882,-480.0,0.00021917,2]
[385455176,1757862642892,-493.62241222,0.00021917,2]
[385455177,1757862642901,-480.0,0.00021917,2]
[385455178,1757862642911,-6538.1,0.00021917,2]
[385455179,1757862642920,-480.0,0.00021917,2]
[385455180,1757862642929,-499.66,0.00021917,2]
[385455181,1757862642938,-1131.06,0.00021917,2]
[385455182,1757862642947,-480.0,0.00021917,2]
[385455183,1757862642957,-480.0,0.00021917,2]
[385455184,1757862642966,-2142.0,0.00021917,2]
[385455185,1757862642976,-480.0,0.00021917,2]
[385455186,1757862642985,-480.0,0.00021917,2]
[385455187,1757862642994,-480.0,0.00021917,2]
[385455188,1757862643004,-480.0,0.00021917,2]
[385455189,1757862643013,-618.23237294,0.00021917,2]
[385455190,1757862643023,-480.0,0.00021917,2]
[385455191,1757862643032,-480.0,0.00021917,2]
[385455192,1757862643041,-480.0,0.00021917,2]
[385455193,1757862643051,-480.0,0.00021917,2]
[385455194,1757862643061,-480.0,0.00021917,2]
[385455195,1757862643070,-2847.09,0.00021917,2]
[385455196,1757862643079,-564.69,0.00021917,2]
[385455197,1757862643089,-480.0,0.00021917,2]
[385455198,1757862643098,-1229.62,0.00021917,2]
[385455199,1757862643108,-488.47068157,0.00021917,2]
[385455200,1757862643119,-480.0,0.00021917,2]
[385455201,1757862643128,-480.0,0.00021917,2]
[385455202,1757862643138,-480.0,0.00021917,2]
[385455203,1757862643147,-480.0,0.00021917,2]
[385455204,1757862643157,-489.50062864,0.00021917,2]
[385455205,1757862643166,-972.27,0.00021917,2]
[385455206,1757862643175,-482.80465601,0.00021917,2]
[385455207,1757862643184,-491.28283836,0.00021917,2]
[385455208,1757862643194,-480.0,0.00021917,2]
[385455209,1757862643203,-1365.02,0.00021917,2]
[385455210,1757862643212,-483.90666192,0.00021917,2]
[385455211,1757862643221,-480.0,0.00021917,2]
[385455212,1757862643231,-480.0,0.00021917,2]
[385455213,1757862643240,-480.0,0.00021917,2]
[385455214,1757862643251,-1050.27,0.00021917,2]
[385455215,1757862643261,-482.04299615,0.00021917,2]
[385455216,1757862643270,-480.0,0.00021917,2]
[385455217,1757862643279,-480.0,0.00021917,2]
[385455218,1757862643287,-496.66676076,0.00021917,2]
[385455219,1757862643297,-480.0,0.00021917,2]
[385455220,1757862643306,-480.0,0.00021917,2]
[385455221,1757862643315,-1480.77,0.00021917,2]
[385455222,1757862643324,-480.0,0.00021917,2]
[385455223,1757862643333,-480.0,0.00021917,2]
[385455224,1757862643342,-480.0,0.00021917,2]
[385455225,1757862643351,-480.0,0.00021917,2]
[385455226,1757862643362,-480.0,0.00021917,2]
[385455227,1757862643371,-5324.48,0.00021917,2]
[385455228,1757862643380,-483.67776557,0.00021917,2]
[385455229,1757862643390,-480.0,0.00021917,2]
[385455230,1757862643399,-480.0,0.00021917,2]
[385455231,1757862643409,-542.09,0.00021917,2]
[385455232,1757862643419,-480.0,0.00021917,2]
[385455233,1757862643428,-2423.37,0.00021917,2]
[385455234,1757862643437,-484.76341819,0.00021917,2]
[385455235,1757862643448,-2761.77,0.00021917,2]
[385455236,1757862643458,-760.5,0.00021917,2]
[385455237,1757862643467,-480.0,0.00021917,2]
[385455238,1757862643477,-480.0,0.00021917,2]
[385455239,1757862643488,-564.77069167,0.00021917,2]
[385455240,1757862643497,-480.0,0.00021917,2]
[385455241,1757862643506,-480.0,0.00021917,2]
[385455242,1757862643516,-581.7,0.00021917,2]
[385455243,1757862643526,-1285.38,0.00021917,2]
[385455244,1757862643535,-480.0,0.00021917,2]
[385455245,1757862643546,-1082.19,0.00021917,2]
[385455246,1757862643555,-785.41,0.00021917,2]
[385455247,1757862643564,-480.0,0.00021917,2]
[385455248,1757862643574,-584.98,0.00021917,2]
[385455249,1757862643583,-480.0,0.00021917,2]
[385455250,1757862643592,-481.52388385,0.00021917,2]
[385455251,1757862643601,-482.20888427,0.00021917,2]
[385455252,1757862643610,-481.17,0.00021917,2]
[385455253,1757862643621,-1095.62,0.00021917,2]
[385455254,1757862643630,-396.25817208,0.00021917,2]
[385455255,1757862643639,-480.0,0.00021917,2]
[385455256,1757862643648,-480.0,0.00021917,2]
[385455257,1757862643658,-853.81,0.00021917,2]
[385455258,1757862643667,-480.0,0.00021917,2]
[385455259,1757862643676,-944.52,0.00021917,2]
[385455260,1757862643686,-488.78194166,0.00021917,2]
[385455261,1757862643695,-1810.9,0.00021917,2]
[385455262,1757862643706,-489.58326246,0.00021917,2]
[385455263,1757862643715,-735.26,0.00021917,2]
[385455264,1757862643724,-1100.16,0.00021917,2]
[385455265,1757862643734,-480.0,0.00021917,2]
[385455266,1757862643743,-480.0,0.00021917,2]
[385455267,1757862643752,-480.0,0.00021917,2]
[385455268,1757862643761,-480.0,0.00021917,2]
[385455269,1757862643770,-2482.51,0.00021917,2]
[385455270,1757862643780,-3698.65,0.00021917,2]
[385455271,1757862643789,-619.13576405,0.00021917,2]
[385455272,1757862643798,-1046.9,0.00021917,2]
[385455273,1757862643807,-695.27,0.00021917,2]
[385455274,1757862643816,-480.0,0.00021917,2]
[385455275,1757862643825,-488.11613169,0.00021917,2]
[385455276,1757862643834,-480.0,0.00021917,2]
[385455277,1757862643843,-793.77,0.00021917,2]
[385455278,1757862643853,-480.0,0.00021917,2]
[385455279,1757862643863,-480.0,0.00021917,2]
[385455280,1757862643872,-480.0,0.00021917,2]
[385455281,1757862643881,-480.0,0.00021917,2]
[385455282,1757862643890,-498.34,0.00021917,2]
[385455283,1757862643900,-480.0,0.00021917,2]
[385455284,1757862643910,-480.01755965,0.00021917,2]
[385455285,1757862643919,-300.0,0.00021917,2]
[385455286,1757862643928,-480.0,0.00021917,2]
[385455287,1757862643938,-480.0,0.00021917,2]
[385455288,1757862643947,-480.0,0.00021917,2]
[385455289,1757862643955,-945.54543846,0.00021954,2]
[385455290,1757862643965,-500.0,0.00021973,2]
[385455291,1757862643974,-393.34958586,0.00021973,2]
[385455292,1757862643984,-501.52711983,0.00021973,2]
[385455293,1757862643993,-500.0,0.00021973,2]
[385455294,1757862644002,-481.14329977,0.00021973,2]
[385455295,1757862644011,-500.0,0.00021973,2]
[385455296,1757862644021,-500.43853504,0.00021973,2]
[385455297,1757862644030,-500.0,0.00021973,2]
[385455298,1757862644039,-503.38114305,0.00021973,2]
[385455299,1757862644048,-500.0,0.00021973,2]
[385455300,1757862644057,-500.0,0.00021973,2]
[385455301,1757862644066,-502.72568923,0.00021973,2]
[385455302,1757862644076,-500.0,0.00021973,2]
[385455303,1757862644085,-500.0,0.00021973,2]
[385455304,1757862644095,-500.64990657,0.00021973,2]
[385455305,1757862644104,-502.04397861,0.00021973,2]
[385455306,1757862644115,-500.0,0.00021973,2]
[385455307,1757862644124,-500.0,0.00021973,2]
[385455308,1757862644133,-500.0,0.00021973,2]
[385455309,1757862644142,-500.0,0.00021973,2]
[385455310,1757862644151,-40763.07,0.00022,7]
[385455311,1757862644160,-2738.46,0.00022,7]
[385455312,1757862644169,-241.64,0.00022,2]
[385455313,1757862644178,-945.54543846,0.00022023,2]
[385455314,1757862644188,-1000.0,0.00022091,2]
[385455315,1757862644197,-945.54543846,0.00022091,2]
[385455316,1757862644206,-500.0,0.00022173,2]
[385455317,1757862644215,-500.0,0.00022173,2]
[385455318,1757862644224,-500.0,0.00022173,2]
[385455319,1757862644234,-500.0,0.00022173,2]
[385455320,1757862644244,-173.63840549,0.00022173,2]
[385455321,1757862644257,-500.0,0.00022173,2]
[385455322,1757862644266,-500.0,0.00022173,2]
[385455323,1757862644275,-618.82281971,0.00022173,2]
[385455324,1757862644284,-500.0,0.00022173,2]
[385455325,1757862644294,-500.0,0.00022173,2]
[385455326,1757862644303,-500.0,0.00022173,2]
[385455327,1757862644312,-500.2014928,0.00022173,2]
[385455328,1757862644322,-500.0,0.00022173,2]
[385455329,1757862644331,-500.0,0.00022173,2]
[385455330,1757862644340,-500.0,0.00022173,2]
[385455331,1757862644349,-502.28377199,0.00022173,2]
[385455332,1757862644359,-503.03113778,0.00022173,2]
[385455333,1757862644371,-500.0,0.00022173,2]
[385455334,1757862644380,-500.0,0.00022173,2]
[385455335,1757862644390,-500.0,0.00022173,2]
[385455336,1757862644399,-500.0,0.00022173,2]
[385455337,1757862644409,-500.0,0.00022173,2]
[385455338,1757862644418,-497.27589563,0.00022173,2]
[385455339,1757862644427,-501.80704489,0.00022173,2]
[385455340,1757862644436,-501.82381241,0.00022173,2]
[385455341,1757862644446,-500.80814639,0.00022173,2]
[385455342,1757862644455,-500.0,0.00022173,2]
[385455343,1757862644464,-500.0,0.00022173,2]
[385455344,1757862644474,-500.0,0.00022173,2]
[385455345,1757862644483,-500.89823398,0.00022173,2]
[385455346,1757862644492,-500.0,0.00022173,2]
[385455347,1757862644501,-501.09342471,0.00022173,2]
[385455348,1757862644511,-500.78801028,0.00022173,2]
[385455349,1757862644520,-502.60239958,0.00022173,2]
[385455350,1757862644529,-500.0,0.00022173,2]
[385455351,1757862644538,-500.0,0.00022173,2]
[385455352,1757862644547,-500.0,0.00022173,2]
[385455353,1757862644556,-500.0,0.00022173,2]
[385455354,1757862644566,-500.0,0.00022173,2]
[385455355,1757862644575,-500.0,0.00022173,2]
[385455356,1757862644584,-472.69707413,0.00022173,2]
[385455357,1757862644593,-207.4190293,0.00022173,2]
[385455358,1757862644603,-151.0,0.00022173,7]
[385455359,1757862644614,-151.0,0.00022173,7]
[385455360,1757862644623,-151.164201,0.00022173,7]
[385455361,1757862644632,-151.0,0.00022173,7]
[385455362,1757862644641,-151.0,0.00022173,7]
[385455363,1757862644651,-151.0,0.00022173,7]
[385455364,1757862644660,-151.0,0.00022173,7]
[385455365,1757862644669,-151.0,0.00022173,7]
[385455366,1757862644678,-157.284925,0.00022173,7]
[385455367,1757862644687,-151.0,0.00022173,7]
[385455368,1757862644696,-161.489765,0.00022173,7]
[385455369,1757862644705,-161.489765,0.00022173,7]
[385455370,1757862644714,-161.489765,0.00022173,7]
[385455371,1757862644724,-151.0,0.00022173,7]
[385455372,1757862644860,-161.489765,0.00022173,7]
[385455373,1757862644872,-151.0,0.00022173,7]
[385455374,1757862644882,-151.0,0.00022173,7]
[385455375,1757862644892,-151.0,0.00022173,7]
[385455376,1757862644902,-151.0,0.00022173,7]
[385455378,1757862644911,-151.0,0.00022173,7]
[385455380,1757862644922,-500.0,0.00022191,5]
[385455382,1757862644931,-500.0,0.00022191,5]
[385455385,1757862644941,-480.0,0.00022191,3]
[385455387,1757862644951,-491.87,0.00022191,3]
[385455388,1757862644960,-959.61,0.00022191,3]
[385455391,1757862644970,-480.0,0.00022191,3]
[385455393,1757862644979,-480.0,0.00022191,3]
[385455395,1757862644988,-480.0,0.00022191,3]
[385455397,1757862644998,-480.0,0.00022191,3]
[385455399,1757862645007,-480.0,0.00022191,3]
[385455401,1757862645016,-480.0,0.00022191,3]
[385455402,1757862645026,-643.05,0.00022191,3]
[385455404,1757862645035,-480.0,0.00022191,3]
[385455407,1757862645046,-582.53078713,0.00022191,3]
[385455409,1757862645055,-214.02317887,0.00022191,3]
[385455410,1757862645065,-480.0,0.00022191,3]
[385455413,1757862645075,-480.0,0.00022191,3]
[385455415,1757862645084,-480.0,0.00022191,3]
[385455417,1757862645094,-480.0,0.00022191,3]
[385455419,1757862645103,-480.0,0.00022191,3]
[385455421,1757862645114,-480.0,0.00022191,3]
[385455423,1757862645123,-480.0,0.00022191,3]
[385455424,1757862645133,-480.0,0.00022191,3]
[385455426,1757862645143,-480.0,0.00022191,3]
[385455429,1757862645153,-695.45,0.00022191,3]
[385455431,1757862645163,-781.03,0.00022191,3]
[385455432,1757862645172,-480.0,0.00022191,3]
[385455435,1757862645181,-502.31883609,0.00022191,3]
[385455437,1757862645191,-480.0,0.00022191,3]
[385455439,1757862645200,-480.0,0.00022191,3]
[385455441,1757862645209,-500.0,0.00022191,3]
[385455443,1757862645219,-480.0,0.00022191,3]
[385455445,1757862645229,-428.81698344,0.00022191,3]
[385455447,1757862645238,-480.0,0.00022191,3]
[385455449,1757862645249,-480.0,0.00022191,3]
[385455451,1757862645259,-480.0,0.00022191,3]
[385455452,1757862645268,-480.0,0.00022191,3]
[385455455,1757862645277,-480.0,0.00022191,3]
[385455457,1757862645287,-480.0,0.00022191,3]
[385455459,1757862645296,-480.0,0.00022191,3]
[385455461,1757862645306,-480.0,0.00022191,3]
[385455464,1757862645315,-480.0,0.00022191,3]
[385455466,1757862645325,-480.0,0.00022191,3]
[385455467,1757862645334,-480.0,0.00022191,3]
[385455469,1757862645343,-151.0,0.00022191,7]
[385455471,1757862645353,-480.0,0.00022191,3]
[385455473,1757862645362,-491.99687363,0.00022191,3]
[385455475,1757862645372,-490.52124139,0.00022191,3]
[385455477,1757862645382,-480.0,0.00022191,3]
[385455479,1757862645392,-480.0,0.00022191,3]
[385455482,1757862645401,-1676.23,0.00022191,3]
[385455484,1757862645410,-480.0,0.00022191,3]
[385455486,1757862645419,-1017.9,0.00022191,3]
[385455488,1757862645429,-480.0,0.00022191,3]
[385455491,1757862645438,-480.0,0.00022191,3]
[385455493,1757862645447,-189.62555355,0.00022191,3]
[385455496,1757862645457,-480.0,0.00022191,3]
[385455497,1757862645469,-480.0,0.00022191,3]
[385455499,1757862645479,-484.77696479,0.00022191,3]
[385455501,1757862645489,-346.47676145,0.00022191,3]
[385455504,1757862645498,-483.66432483,0.00022191,3]
[385455506,1757862645507,-770.11,0.00022191,3]
[385455507,1757862645516,-480.0,0.00022191,3]
[385455509,1757862645525,-608.84126728,0.00022191,3]
[385455512,1757862645535,-480.0,0.00022191,3]